[Event "*** Titled Tuesday Blitz"]
[Site "Chess.com"]
[Date "2020.04.14"]
[Round "3"]
[White "mirochka"]
[Black "TastyTablet"]
[Result "0-1"]
[WhiteElo "2328"]
[BlackElo "2576"]
[TimeControl "180+1"]
[EndTime "10:29:04 PDT"]
[Termination "TastyTablet won on time"]

1. e4 {[%clk 0:03:00.9]} 1... e6 {[%clk 0:03:00.9]} 2. Nf3 {[%clk 0:02:59.7]}
2... d5 {[%clk 0:02:59.4]} 3. e5 {[%clk 0:03:00.2]} 3... Bd7 {[%clk 0:02:58.4]}
4. c3 {[%clk 0:02:56.1]} 4... c5 {[%clk 0:02:57.8]} 5. a3 {[%clk 0:02:44.7]}
5... Nc6 {[%clk 0:02:57.1]} 6. b4 {[%clk 0:02:43.3]} 6... f6 {[%clk 0:02:54]} 7.
d4 {[%clk 0:02:38.2]} 7... fxe5 {[%clk 0:02:53.9]} 8. Nxe5 {[%clk 0:02:30.7]}
8... Nxe5 {[%clk 0:02:53.9]} 9. dxe5 {[%clk 0:02:31.1]} 9... Qc7 {[%clk
0:02:54.8]} 10. Bf4 {[%clk 0:02:25.7]} 10... O-O-O {[%clk 0:02:54.1]} 11. Bd3
{[%clk 0:02:14.4]} 11... Ne7 {[%clk 0:02:54.1]} 12. O-O {[%clk 0:02:10.2]} 12...
h6 {[%clk 0:02:54.5]} 13. Nd2 {[%clk 0:01:57.2]} 13... g5 {[%clk 0:02:54.1]} 14.
Bg3 {[%clk 0:01:56.8]} 14... Bg7 {[%clk 0:02:54]} 15. Rc1 {[%clk 0:01:56.2]}
15... c4 {[%clk 0:02:50.9]} 16. Bb1 {[%clk 0:01:51.3]} 16... Bxe5 {[%clk
0:02:50.5]} 17. Nf3 {[%clk 0:01:45.2]} 17... Bxg3 {[%clk 0:02:43.6]} 18. fxg3
{[%clk 0:01:45.8]} 18... e5 {[%clk 0:02:44.2]} 19. Qe2 {[%clk 0:01:28.6]} 19...
e4 {[%clk 0:02:43.7]} 20. Nd4 {[%clk 0:01:25.6]} 20... Rdf8 {[%clk 0:02:44.1]}
21. b5 {[%clk 0:00:55.9]} 21... Ng6 {[%clk 0:02:21.7]} 22. a4 {[%clk 0:00:47.7]}
22... Ne5 {[%clk 0:02:20.8]} 23. Rce1 {[%clk 0:00:38.7]} 23... Nd3 {[%clk
0:02:19.5]} 24. Bxd3 {[%clk 0:00:37.7]} 24... cxd3 {[%clk 0:02:20.4]} 25. Qd2
{[%clk 0:00:35.4]} 25... Qd6 {[%clk 0:02:15.8]} 26. Rc1 {[%clk 0:00:33.8]} 26...
Rxf1+ {[%clk 0:02:15.2]} 27. Rxf1 {[%clk 0:00:32.7]} 27... Rf8 {[%clk
0:02:16.1]} 28. Rc1 {[%clk 0:00:31.5]} 28... Kb8 {[%clk 0:02:12.6]} 29. Qe3
{[%clk 0:00:31.3]} 29... Qa3 {[%clk 0:02:05]} 30. c4 {[%clk 0:00:23.6]} 30...
dxc4 {[%clk 0:01:50.9]} 31. Rxc4 {[%clk 0:00:22.8]} 31... Bf5 {[%clk 0:01:45]}
32. g4 {[%clk 0:00:18.6]} 32... Bg6 {[%clk 0:01:44]} 33. h3 {[%clk 0:00:18.1]}
33... Qa1+ {[%clk 0:01:40.4]} 34. Kh2 {[%clk 0:00:17.2]} 34... Qb2 {[%clk
0:01:39]} 35. Nf5 {[%clk 0:00:16.2]} 35... Bxf5 {[%clk 0:01:38.3]} 36. gxf5
{[%clk 0:00:16.3]} 36... Qe5+ {[%clk 0:01:34]} 37. Kg1 {[%clk 0:00:12.9]} 37...
Qxf5 {[%clk 0:01:13.6]} 38. Rxe4 {[%clk 0:00:12.5]} 38... d2 {[%clk 0:01:04.8]}
39. Re8+ {[%clk 0:00:10.9]} 39... Rxe8 {[%clk 0:01:02.1]} 40. Qxe8+ {[%clk
0:00:11.4]} 40... Kc7 {[%clk 0:01:02.7]} 41. Qe7+ {[%clk 0:00:11.3]} 41... Kb6
{[%clk 0:00:52]} 42. Qd6+ {[%clk 0:00:10.6]} 42... Ka5 {[%clk 0:00:51.2]} 43.
Qxd2+ {[%clk 0:00:10.2]} 43... Kxa4 {[%clk 0:00:51.6]} 44. Qd4+ {[%clk
0:00:08.4]} 44... Kxb5 {[%clk 0:00:51.1]} 45. Qb2+ {[%clk 0:00:08.1]} 45... Kc6
{[%clk 0:00:50.1]} 46. Qg7 {[%clk 0:00:08]} 46... Qc5+ {[%clk 0:00:49.2]} 47.
Kh1 {[%clk 0:00:05.6]} 47... Qd6 {[%clk 0:00:31.5]} 48. Qc3+ {[%clk 0:00:04.2]}
48... Kb6 {[%clk 0:00:29.3]} 49. Qb3+ {[%clk 0:00:03.8]} 49... Kc7 {[%clk
0:00:29.8]} 50. Qc3+ {[%clk 0:00:03]} 50... Kd8 {[%clk 0:00:27.4]} 51. Qh8+
{[%clk 0:00:02.4]} 51... Kd7 {[%clk 0:00:27.9]} 52. Qg7+ {[%clk 0:00:02.1]}
52... Kc6 {[%clk 0:00:27.8]} 53. Qc3+ {[%clk 0:00:02.7]} 53... Kb5 {[%clk
0:00:28.2]} 54. Qb2+ {[%clk 0:00:02.5]} 54... Ka6 {[%clk 0:00:27.3]} 55. Qa1+
{[%clk 0:00:02.1]} 55... Kb5 {[%clk 0:00:25.6]} 56. Qb2+ {[%clk 0:00:02.6]}
56... Qb4 {[%clk 0:00:26.1]} 57. Qe5+ {[%clk 0:00:02.4]} 57... Ka4 {[%clk
0:00:26.5]} 0-1

[Event "*** Titled Tuesday Blitz"]
[Site "Chess.com"]
[Date "2020.04.14"]
[Round "3"]
[White "Frogo47"]
[Black "kpio91"]
[Result "1/2-1/2"]
[WhiteElo "2521"]
[BlackElo "2746"]
[TimeControl "180+1"]
[EndTime "10:29:05 PDT"]
[Termination "Game drawn by agreement"]

1. e4 {[%clk 0:03:00.9]} 1... c5 {[%clk 0:02:58.6]} 2. Nf3 {[%clk 0:03:00.2]}
2... d6 {[%clk 0:02:59.3]} 3. c3 {[%clk 0:02:59.7]} 3... Nf6 {[%clk 0:02:58]} 4.
Be2 {[%clk 0:02:59.9]} 4... g6 {[%clk 0:02:56.6]} 5. O-O {[%clk 0:02:59.2]} 5...
Bg7 {[%clk 0:02:57.2]} 6. Bb5+ {[%clk 0:02:59.7]} 6... Nc6 {[%clk 0:02:51]} 7.
Re1 {[%clk 0:02:59.3]} 7... O-O {[%clk 0:02:50.4]} 8. h3 {[%clk 0:02:59.1]} 8...
d5 {[%clk 0:02:48.7]} 9. e5 {[%clk 0:02:58.4]} 9... Ne8 {[%clk 0:02:48.8]} 10.
d4 {[%clk 0:02:54.9]} 10... cxd4 {[%clk 0:02:47.3]} 11. cxd4 {[%clk 0:02:54.9]}
11... Nc7 {[%clk 0:02:46.6]} 12. Bxc6 {[%clk 0:02:54.6]} 12... bxc6 {[%clk
0:02:47.5]} 13. Nc3 {[%clk 0:02:55.3]} 13... f6 {[%clk 0:02:46]} 14. Na4 {[%clk
0:02:54.4]} 14... Ne6 {[%clk 0:02:38]} 15. Be3 {[%clk 0:02:51.8]} 15... Ba6
{[%clk 0:02:35.1]} 16. Rc1 {[%clk 0:02:49.2]} 16... Rc8 {[%clk 0:02:13.7]} 17.
Nc5 {[%clk 0:02:28.9]} 17... Nxc5 {[%clk 0:02:13]} 18. Rxc5 {[%clk 0:02:29.8]}
18... Qb6 {[%clk 0:02:13.4]} 19. Qc2 {[%clk 0:02:21.1]} 19... g5 {[%clk
0:01:45.3]} 20. exf6 {[%clk 0:02:10.2]} 20... exf6 {[%clk 0:01:43.7]} 21. Rc1
{[%clk 0:02:10.6]} 21... Bb7 {[%clk 0:01:40.2]} 22. b3 {[%clk 0:02:06.8]} 22...
Qd8 {[%clk 0:01:35.2]} 23. Qf5 {[%clk 0:01:57.1]} 23... Rc7 {[%clk 0:01:32]} 24.
b4 {[%clk 0:01:42.9]} 24... Re7 {[%clk 0:01:24.8]} 25. a4 {[%clk 0:01:32.4]}
25... Bc8 {[%clk 0:01:16.6]} 26. Qd3 {[%clk 0:01:27.9]} 26... Bd7 {[%clk
0:01:16.7]} 27. Qb3 {[%clk 0:01:04.6]} 27... a6 {[%clk 0:00:56.9]} 28. b5 {[%clk
0:01:02.1]} 28... axb5 {[%clk 0:00:52]} 29. axb5 {[%clk 0:01:02.3]} 29... cxb5
{[%clk 0:00:52.6]} 30. Rxd5 {[%clk 0:00:53.1]} 30... Kh8 {[%clk 0:00:43.3]} 31.
Rdc5 {[%clk 0:00:49.2]} 31... Qe8 {[%clk 0:00:34.9]} 32. d5 {[%clk 0:00:48.7]}
32... h5 {[%clk 0:00:31.7]} 33. Nd4 {[%clk 0:00:48.3]} 33... g4 {[%clk
0:00:27.3]} 34. hxg4 {[%clk 0:00:47.4]} 34... hxg4 {[%clk 0:00:27]} 35. Ne6
{[%clk 0:00:47.4]} 35... Bxe6 {[%clk 0:00:13.5]} 36. dxe6 {[%clk 0:00:48.3]}
36... Rxe6 {[%clk 0:00:14.1]} 37. Qxb5 {[%clk 0:00:42.2]} 37... Qxb5 {[%clk
0:00:12.3]} 38. Rxb5 {[%clk 0:00:43.1]} 38... f5 {[%clk 0:00:12.8]} 39. g3
{[%clk 0:00:41.5]} 39... Rf7 {[%clk 0:00:07.8]} 40. Rcc5 {[%clk 0:00:40.6]}
40... Ref6 {[%clk 0:00:04.1]} 41. Bd4 {[%clk 0:00:39.9]} 41... Re6 {[%clk
0:00:03.9]} 42. Bxg7+ {[%clk 0:00:37.9]} 42... Kxg7 {[%clk 0:00:04.4]} 43. Rxf5
{[%clk 0:00:38.4]} 43... Rxf5 {[%clk 0:00:05]} 44. Rxf5 {[%clk 0:00:38.7]} 44...
Kg6 {[%clk 0:00:05.9]} 45. Rf4 {[%clk 0:00:38.6]} 45... Kg5 {[%clk 0:00:05]} 46.
Kg2 {[%clk 0:00:38.6]} 46... Re5 {[%clk 0:00:04.9]} 47. Rb4 {[%clk 0:00:37.9]}
47... Rd5 {[%clk 0:00:05]} 48. f4+ {[%clk 0:00:35.6]} 48... gxf3+ {[%clk
0:00:03.8]} 49. Kxf3 {[%clk 0:00:35.6]} 49... Rd3+ {[%clk 0:00:04.7]} 50. Kg2
{[%clk 0:00:35.7]} 50... Rd2+ {[%clk 0:00:04.9]} 51. Kh3 {[%clk 0:00:36]} 51...
Rd5 {[%clk 0:00:05.8]} 52. Rb8 {[%clk 0:00:34.6]} 52... Kg6 {[%clk 0:00:05.8]}
53. Kh4 {[%clk 0:00:34]} 53... Rd1 {[%clk 0:00:05.2]} 54. Rb6+ {[%clk
0:00:32.2]} 54... Kg7 {[%clk 0:00:05.1]} 55. g4 {[%clk 0:00:32.1]} 55... Rd5
{[%clk 0:00:05.6]} 56. g5 {[%clk 0:00:30]} 56... Rd1 {[%clk 0:00:05.4]} 57. Rb7+
{[%clk 0:00:29.2]} 57... Kg6 {[%clk 0:00:05.5]} 58. Rb6+ {[%clk 0:00:29.2]}
58... Kg7 {[%clk 0:00:05.7]} 1/2-1/2

[Event "*** Titled Tuesday Blitz"]
[Site "Chess.com"]
[Date "2020.04.14"]
[Round "3"]
[White "KafkaesqueKnight"]
[Black "Zhani-Z"]
[Result "0-1"]
[WhiteElo "2140"]
[BlackElo "2513"]
[TimeControl "180+1"]
[EndTime "10:29:06 PDT"]
[Termination "Zhani-Z won by resignation"]

1. d4 {[%clk 0:03:00.9]} 1... Nf6 {[%clk 0:02:58.7]} 2. c4 {[%clk 0:03:00.7]}
2... g6 {[%clk 0:02:59.6]} 3. Nf3 {[%clk 0:03:00.6]} 3... Bg7 {[%clk 0:02:59.9]}
4. Nc3 {[%clk 0:03:00.9]} 4... d6 {[%clk 0:03:00.3]} 5. e4 {[%clk 0:02:59.7]}
5... Bg4 {[%clk 0:03:00.5]} 6. Be2 {[%clk 0:02:57.7]} 6... O-O {[%clk
0:03:00.6]} 7. O-O {[%clk 0:02:54.1]} 7... Nc6 {[%clk 0:03:00.7]} 8. h3 {[%clk
0:02:49]} 8... Bxf3 {[%clk 0:03:00.2]} 9. Bxf3 {[%clk 0:02:49.9]} 9... e5 {[%clk
0:03:00.3]} 10. dxe5 {[%clk 0:02:46.7]} 10... dxe5 {[%clk 0:02:54.8]} 11. Qxd8
{[%clk 0:02:38]} 11... Rfxd8 {[%clk 0:02:54.9]} 12. Nd5 {[%clk 0:02:38]} 12...
Ne8 {[%clk 0:02:55.3]} 13. Be3 {[%clk 0:02:25.7]} 13... Nd4 {[%clk 0:02:52.9]}
14. Rad1 {[%clk 0:02:09.7]} 14... c6 {[%clk 0:02:51.6]} 15. Nc3 {[%clk 0:02:06]}
15... Nc7 {[%clk 0:02:49.5]} 16. Rfe1 {[%clk 0:01:57.5]} 16... h5 {[%clk
0:02:47.4]} 17. Be2 {[%clk 0:01:54.7]} 17... Nce6 {[%clk 0:02:46.9]} 18. g3
{[%clk 0:01:50.8]} 18... Rd7 {[%clk 0:02:38.3]} 19. Kg2 {[%clk 0:01:44]} 19...
Rad8 {[%clk 0:02:36.6]} 20. Bf1 {[%clk 0:01:38.6]} 20... Bf6 {[%clk 0:02:31]}
21. f4 {[%clk 0:01:33.9]} 21... Nc2 {[%clk 0:02:26.2]} 22. Rxd7 {[%clk
0:01:15.5]} 22... Nxe1+ {[%clk 0:02:24.1]} 23. Kf2 {[%clk 0:01:15.3]} 23... Rxd7
{[%clk 0:02:23.9]} 24. Kxe1 {[%clk 0:01:14.9]} 24... h4 {[%clk 0:02:04.8]} 25.
fxe5 {[%clk 0:01:06.6]} 25... Bxe5 {[%clk 0:02:04]} 26. gxh4 {[%clk 0:01:06.7]}
26... Bg3+ {[%clk 0:02:03.4]} 27. Ke2 {[%clk 0:01:03.1]} 27... Nd4+ {[%clk
0:02:00.6]} 28. Bxd4 {[%clk 0:00:58.6]} 28... Rxd4 {[%clk 0:02:00.4]} 29. Ke3
{[%clk 0:00:57.4]} 29... Rd8 {[%clk 0:01:56.2]} 30. h5 {[%clk 0:00:53.9]} 30...
gxh5 {[%clk 0:01:55.5]} 31. Be2 {[%clk 0:00:53.8]} 31... h4 {[%clk 0:01:55.2]}
32. Bg4 {[%clk 0:00:53.4]} 32... Be5 {[%clk 0:01:55.4]} 33. Nd1 {[%clk
0:00:40.3]} 33... a5 {[%clk 0:01:54.1]} 34. b3 {[%clk 0:00:39.2]} 34... a4
{[%clk 0:01:52.8]} 35. Ke2 {[%clk 0:00:30.7]} 35... axb3 {[%clk 0:01:44.9]} 36.
axb3 {[%clk 0:00:31.5]} 36... Bd4 {[%clk 0:01:45.2]} 37. Ne3 {[%clk 0:00:29.2]}
37... Bxe3 {[%clk 0:01:43.9]} 38. Kxe3 {[%clk 0:00:29.7]} 38... c5 {[%clk
0:01:43.9]} 39. e5 {[%clk 0:00:26]} 39... Rd4 {[%clk 0:01:44.1]} 40. e6 {[%clk
0:00:22.5]} 40... fxe6 {[%clk 0:01:43.1]} 41. Bxe6+ {[%clk 0:00:21]} 41... Kg7
{[%clk 0:01:43.4]} 42. Bd5 {[%clk 0:00:21]} 42... b6 {[%clk 0:01:42.7]} 43. b4
{[%clk 0:00:21]} 43... Kf6 {[%clk 0:01:41.8]} 44. bxc5 {[%clk 0:00:20.7]} 44...
bxc5 {[%clk 0:01:42.2]} 45. Kf3 {[%clk 0:00:20.5]} 45... Ke5 {[%clk 0:01:41.7]}
46. Bg8 {[%clk 0:00:20.4]} 46... Rf4+ {[%clk 0:01:40]} 47. Ke3 {[%clk
0:00:20.2]} 47... Rf6 {[%clk 0:01:40.2]} 48. Bd5 {[%clk 0:00:16.3]} 48... Rg6
{[%clk 0:01:40]} 49. Kf2 {[%clk 0:00:11.1]} 49... Rg3 {[%clk 0:01:40]} 50. Bg2
{[%clk 0:00:10.7]} 50... Rxg2+ {[%clk 0:01:20.6]} 51. Kxg2 {[%clk 0:00:10.7]}
51... Kd4 {[%clk 0:01:20.6]} 52. Kf3 {[%clk 0:00:09.9]} 52... Kxc4 {[%clk
0:01:21]} 53. Kg4 {[%clk 0:00:10.4]} 53... Kd3 {[%clk 0:01:21.4]} 54. Kxh4
{[%clk 0:00:11.3]} 54... c4 {[%clk 0:01:21.8]} 55. Kg5 {[%clk 0:00:09.4]} 55...
c3 {[%clk 0:01:22.2]} 56. h4 {[%clk 0:00:09.6]} 56... c2 {[%clk 0:01:22.6]} 57.
h5 {[%clk 0:00:09.5]} 57... c1=Q+ {[%clk 0:01:22]} 58. Kg6 {[%clk 0:00:10.4]}
58... Qa1 {[%clk 0:01:21.3]} 59. Kh7 {[%clk 0:00:08]} 59... Qf6 {[%clk 0:01:21]}
60. h6 {[%clk 0:00:06.8]} 60... Ke4 {[%clk 0:01:20.8]} 0-1

[Event "*** Titled Tuesday Blitz"]
[Site "Chess.com"]
[Date "2020.04.14"]
[Round "3"]
[White "tonyq11"]
[Black "Grandmaster2B"]
[Result "0-1"]
[WhiteElo "2249"]
[BlackElo "2533"]
[TimeControl "180+1"]
[EndTime "10:29:07 PDT"]
[Termination "Grandmaster2B won on time"]

1. d4 {[%clk 0:03:00.9]} 1... Nf6 {[%clk 0:03:00.1]} 2. c4 {[%clk 0:02:58.5]}
2... e6 {[%clk 0:03:00.4]} 3. Nc3 {[%clk 0:02:57.9]} 3... Bb4 {[%clk 0:03:00.3]}
4. f3 {[%clk 0:02:57.9]} 4... c5 {[%clk 0:02:59.1]} 5. d5 {[%clk 0:02:57.8]}
5... b5 {[%clk 0:02:59.6]} 6. e4 {[%clk 0:02:56.8]} 6... O-O {[%clk 0:03:00.2]}
7. e5 {[%clk 0:02:49.9]} 7... Ne8 {[%clk 0:03:00.5]} 8. f4 {[%clk 0:02:50.1]}
8... exd5 {[%clk 0:03:00.2]} 9. cxd5 {[%clk 0:02:48.5]} 9... d6 {[%clk
0:03:00.6]} 10. Nf3 {[%clk 0:02:47.1]} 10... Nc7 {[%clk 0:03:00]} 11. Bd3 {[%clk
0:02:42]} 11... c4 {[%clk 0:02:48.4]} 12. Bc2 {[%clk 0:02:27.6]} 12... dxe5
{[%clk 0:02:46.7]} 13. d6 {[%clk 0:02:09.8]} 13... Bxd6 {[%clk 0:02:42.8]} 14.
fxe5 {[%clk 0:02:04.2]} 14... Bb4 {[%clk 0:02:42.4]} 15. O-O {[%clk 0:02:00.3]}
15... Qxd1 {[%clk 0:01:57.7]} 16. Rxd1 {[%clk 0:02:01.2]} 16... Bb7 {[%clk
0:01:57.9]} 17. Ng5 {[%clk 0:01:44.6]} 17... h6 {[%clk 0:01:55]} 18. Nge4 {[%clk
0:01:44.5]} 18... a6 {[%clk 0:01:45.2]} 19. a3 {[%clk 0:01:43.2]} 19... Be7
{[%clk 0:01:33.8]} 20. Be3 {[%clk 0:01:36.6]} 20... Nc6 {[%clk 0:01:14.7]} 21.
Rd7 {[%clk 0:01:20.5]} 21... Bd8 {[%clk 0:01:14.6]} 22. Bf4 {[%clk 0:01:03.9]}
22... Bc8 {[%clk 0:01:10.1]} 23. Rd6 {[%clk 0:00:56.9]} 23... Ne6 {[%clk
0:00:52.8]} 24. Bxh6 {[%clk 0:00:17.3]} 24... Nxe5 {[%clk 0:00:45.6]} 25. Be3
{[%clk 0:00:16.8]} 25... Bc7 {[%clk 0:00:44.6]} 26. Rd2 {[%clk 0:00:15.1]} 26...
Bb7 {[%clk 0:00:44.6]} 27. Rad1 {[%clk 0:00:13.9]} 27... Rad8 {[%clk 0:00:39.5]}
28. h3 {[%clk 0:00:13.3]} 28... Rxd2 {[%clk 0:00:25.4]} 29. Rxd2 {[%clk
0:00:13.4]} 29... Rd8 {[%clk 0:00:26.3]} 30. Rxd8+ {[%clk 0:00:13]} 30... Bxd8
{[%clk 0:00:19.7]} 31. Nd6 {[%clk 0:00:12]} 31... Bc6 {[%clk 0:00:18.7]} 32.
Nce4 {[%clk 0:00:10.4]} 32... Bc7 {[%clk 0:00:15.9]} 33. Nf5 {[%clk 0:00:10.5]}
33... Kf8 {[%clk 0:00:07.6]} 34. Kf2 {[%clk 0:00:08]} 34... f6 {[%clk
0:00:02.2]} 35. Nd4 {[%clk 0:00:05.9]} 35... Nxd4 {[%clk 0:00:02.2]} 36. Bxd4
{[%clk 0:00:06.8]} 36... Kf7 {[%clk 0:00:01.8]} 37. Nc5 {[%clk 0:00:06]} 37...
Bd6 {[%clk 0:00:01.7]} 38. Nxa6 {[%clk 0:00:05.4]} 38... Nd3+ {[%clk 0:00:02]}
39. Bxd3 {[%clk 0:00:04.8]} 39... cxd3 {[%clk 0:00:02.9]} 40. Nb4 {[%clk
0:00:04.1]} 40... d2 {[%clk 0:00:03]} 41. Ke2 {[%clk 0:00:04.5]} 41... Bxg2
{[%clk 0:00:03.8]} 42. Kxd2 {[%clk 0:00:04.7]} 42... Bxh3 {[%clk 0:00:04.7]} 43.
b3 {[%clk 0:00:02.6]} 43... Bd7 {[%clk 0:00:05.6]} 44. Nd3 {[%clk 0:00:02.6]}
44... Ke6 {[%clk 0:00:04.6]} 45. a4 {[%clk 0:00:02.9]} 45... bxa4 {[%clk
0:00:04.7]} 46. bxa4 {[%clk 0:00:03.8]} 46... Bxa4 {[%clk 0:00:05.1]} 47. Ke3
{[%clk 0:00:04.5]} 47... Kd5 {[%clk 0:00:04.9]} 48. Bc3 {[%clk 0:00:03.7]} 48...
Bb5 {[%clk 0:00:04.8]} 49. Nf4+ {[%clk 0:00:03.9]} 49... Kc4 {[%clk 0:00:03.8]}
50. Bxf6 {[%clk 0:00:03.1]} 50... gxf6 {[%clk 0:00:03.7]} 51. Nh5 {[%clk
0:00:03.1]} 51... Be5 {[%clk 0:00:04.6]} 52. Ng7 {[%clk 0:00:02.7]} 52... Bd7
{[%clk 0:00:03.8]} 53. Ke4 {[%clk 0:00:01.9]} 53... Kc5 {[%clk 0:00:02.6]} 54.
Nh5 {[%clk 0:00:01.6]} 54... Kd6 {[%clk 0:00:03]} 55. Ng7 {[%clk 0:00:01.1]}
55... Ke7 {[%clk 0:00:02.8]} 0-1

[Event "*** Titled Tuesday Blitz"]
[Site "Chess.com"]
[Date "2020.04.14"]
[Round "3"]
[White "secretsuperstar7"]
[Black "BabyBoss31"]
[Result "0-1"]
[WhiteElo "2139"]
[BlackElo "2342"]
[TimeControl "180+1"]
[EndTime "10:29:08 PDT"]
[Termination "BabyBoss31 won on time"]

1. d4 {[%clk 0:03:00.9]} 1... d5 {[%clk 0:02:59.4]} 2. c4 {[%clk 0:02:56]} 2...
Nc6 {[%clk 0:02:58]} 3. Nf3 {[%clk 0:02:48]} 3... Bg4 {[%clk 0:02:56.3]} 4. cxd5
{[%clk 0:02:34]} 4... Bxf3 {[%clk 0:02:54.1]} 5. gxf3 {[%clk 0:02:32.8]} 5...
Qxd5 {[%clk 0:02:51.5]} 6. e3 {[%clk 0:02:29.5]} 6... e5 {[%clk 0:02:50.2]} 7.
Nc3 {[%clk 0:02:28.8]} 7... Bb4 {[%clk 0:02:47.3]} 8. Bd2 {[%clk 0:02:27.3]}
8... Bxc3 {[%clk 0:02:45.5]} 9. bxc3 {[%clk 0:02:26.7]} 9... Qd6 {[%clk
0:02:44.7]} 10. Rb1 {[%clk 0:02:20.5]} 10... b6 {[%clk 0:02:42.1]} 11. f4 {[%clk
0:02:17.1]} 11... exf4 {[%clk 0:02:38.8]} 12. e4 {[%clk 0:02:16.6]} 12... Nge7
{[%clk 0:02:37.3]} 13. Qf3 {[%clk 0:02:13.5]} 13... Qa3 {[%clk 0:02:31.2]} 14.
Bc4 {[%clk 0:02:06.3]} 14... Nxd4 {[%clk 0:01:36.7]} 15. Bxf7+ {[%clk
0:01:32.7]} 15... Kxf7 {[%clk 0:01:22.1]} 16. Qxf4+ {[%clk 0:01:30.4]} 16... Ke8
{[%clk 0:01:19.9]} 17. cxd4 {[%clk 0:01:27.9]} 17... Rf8 {[%clk 0:01:12.2]} 18.
Qe5 {[%clk 0:01:05.8]} 18... Qxa2 {[%clk 0:00:58.6]} 19. O-O {[%clk 0:01:03.8]}
19... Qxd2 {[%clk 0:00:56.2]} 20. Qxc7 {[%clk 0:00:55.8]} 20... Qf4 {[%clk
0:00:36.6]} 21. Qc2 {[%clk 0:00:47.2]} 21... Qd6 {[%clk 0:00:28.9]} 22. Qa4+
{[%clk 0:00:33.3]} 22... Qd7 {[%clk 0:00:23.1]} 23. Qb3 {[%clk 0:00:25.9]} 23...
Qg4+ {[%clk 0:00:22.3]} 24. Kh1 {[%clk 0:00:25.1]} 24... Qf3+ {[%clk 0:00:20.3]}
25. Qxf3 {[%clk 0:00:24.6]} 25... Rxf3 {[%clk 0:00:21.2]} 26. Kg2 {[%clk
0:00:22.9]} 26... Rd3 {[%clk 0:00:21.2]} 27. d5 {[%clk 0:00:21.6]} 27... Kd7
{[%clk 0:00:20.8]} 28. f4 {[%clk 0:00:20.2]} 28... Rf8 {[%clk 0:00:19.6]} 29.
Ra1 {[%clk 0:00:19.4]} 29... a5 {[%clk 0:00:18.3]} 30. Rab1 {[%clk 0:00:17.8]}
30... Kc7 {[%clk 0:00:18.5]} 31. Rfc1+ {[%clk 0:00:17.1]} 31... Kb7 {[%clk
0:00:18.9]} 32. f5 {[%clk 0:00:16.2]} 32... g6 {[%clk 0:00:18.2]} 33. fxg6
{[%clk 0:00:12]} 33... hxg6 {[%clk 0:00:19.1]} 34. Rc2 {[%clk 0:00:10.9]} 34...
Rd4 {[%clk 0:00:19.1]} 35. Rcb2 {[%clk 0:00:10.2]} 35... Rb4 {[%clk 0:00:19.3]}
36. Rxb4 {[%clk 0:00:09.8]} 36... axb4 {[%clk 0:00:20]} 37. Rxb4 {[%clk
0:00:10.7]} 37... Rf4 {[%clk 0:00:19.2]} 38. Kg3 {[%clk 0:00:10.4]} 38... Rf1
{[%clk 0:00:19.2]} 39. d6 {[%clk 0:00:09.1]} 39... Nc6 {[%clk 0:00:18.8]} 40.
Rc4 {[%clk 0:00:08.3]} 40... Rd1 {[%clk 0:00:17.9]} 41. e5 {[%clk 0:00:06.9]}
41... Nxe5 {[%clk 0:00:17.2]} 42. Rc7+ {[%clk 0:00:06.7]} 42... Ka6 {[%clk
0:00:17.6]} 43. Re7 {[%clk 0:00:05.3]} 43... Rxd6 {[%clk 0:00:08]} 44. Rxe5
{[%clk 0:00:04.4]} 44... b5 {[%clk 0:00:08.7]} 45. Re8 {[%clk 0:00:03.3]} 45...
Ka5 {[%clk 0:00:09.1]} 46. Ra8+ {[%clk 0:00:02.3]} 46... Kb4 {[%clk 0:00:09.1]}
47. h4 {[%clk 0:00:02.3]} 47... Kc3 {[%clk 0:00:09.1]} 48. Kf3 {[%clk
0:00:02.6]} 48... b4 {[%clk 0:00:09.3]} 49. Rc8+ {[%clk 0:00:03]} 49... Kb2
{[%clk 0:00:09.1]} 50. Ke2 {[%clk 0:00:02.9]} 50... b3 {[%clk 0:00:09.7]} 51.
Ra8 {[%clk 0:00:03]} 51... Kb1 {[%clk 0:00:10]} 52. Rb8 {[%clk 0:00:02.3]} 52...
b2 {[%clk 0:00:10.5]} 53. Ke1 {[%clk 0:00:02.3]} 53... Rd4 {[%clk 0:00:10.7]}
54. Rb7 {[%clk 0:00:02]} 54... Rxh4 {[%clk 0:00:10.3]} 55. Kd2 {[%clk
0:00:01.6]} 55... Rc4 {[%clk 0:00:10.4]} 0-1